bitfinex/quotes_ETHUSD_20251011
["timestamp","ask_amount","ask_price","bid_price","bid_amount"]
[1760218631098,0.937,3744.5,3742.0,21.94045227]
[1760218631298,0.937,3744.5,3743.7,2.67108809]
[1760218631499,0.937,3744.5,3743.3,0.4675]
[1760218631729,0.937,3744.5,3742.1,2.1523]
[1760218631730,0.937,3744.5,3742.1,0.6998]
[1760218631945,0.6336,3744.4,3742.4,2.67206997]
[1760218632230,2.67107462,3743.9,3742.2,0.4675]
[1760218632437,0.937,3744.5,3742.2,0.4675]
[1760218632635,1.92,3744.4,3742.5,2.67201068]
[1760218632792,2.67067746,3744.4,3743.3,2.67140757]
[1760218632992,1.92,3744.2,3742.6,0.4675]
[1760218633188,0.6336,3744.4,3742.1,0.2323]
[1760218633390,2.857,3744.5,3742.3,2.67215348]
[1760218633391,2.67129642,3743.6,3742.3,2.67215348]
[1760218633617,1.92,3744.0,3742.2,2.67222078]
[1760218633930,1.92,3744.0,3741.8,3.13995036]
[1760218633931,2.67130238,3743.5,3741.8,0.4675]
[1760218634129,2.67130238,3743.5,3742.4,2.67202269]
[1760218634430,1.92,3744.0,3742.2,0.4675]
[1760218634727,2.67105761,3743.9,3742.9,2.67171104]
[1760218634890,1.92,3743.6,3742.2,0.4675]
[1760218635219,2.67129299,3743.6,3742.5,2.67198251]
[1760218635420,2.67110783,3743.8,3742.8,2.67177275]
[1760218635599,1.92,3744.0,3742.3,2.67215348]
[1760218635800,1.92,3744.1,3743.2,2.67150336]
[1760218636098,1.92,3744.3,3743.2,2.67149276]
[1760218636423,1.92,3744.0,3743.2,2.67149276]
[1760218636819,1.92,3744.1,3743.1,2.67158237]
[1760218637025,0.001,3745.1,3745.0,2.67022696]
[1760218637213,0.001,3745.1,3744.0,0.2323]
[1760218637524,0.001,3745.1,3744.0,2.90322945]
[1760218637711,0.001,3745.1,3742.8,0.41347013]
[1760218637712,0.1328,3744.4,3743.7,0.1328]
[1760218637911,0.1328,3744.1,3743.4,0.1328]
[1760218638112,0.001,3745.1,3743.3,2.67143414]
[1760218638113,0.1328,3743.7,3743.3,2.67143414]
[1760218638423,0.1328,3743.7,3743.6,2.67122555]
[1760218639793,0.1328,3743.7,3742.5,0.6003]
[1760218639997,0.1328,3743.2,3742.6,2.67191388]
[1760218640302,2.67087077,3744.1,3742.5,0.4675]
[1760218640615,2.67051609,3744.6,3742.4,2.67203224]
[1760218640616,2.67126565,3743.6,3742.4,2.67203224]
[1760218640922,2.67175954,3742.9,3741.5,0.4675]
[1760218641130,2.67189832,3742.7,3741.6,2.67258654]
[1760218641323,2.67200047,3742.6,3741.5,2.67272025]
[1760218641525,2.67200047,3742.6,3741.6,2.67260647]
[1760218641692,2.67223757,3742.2,3741.1,2.6729464]
[1760218641895,2.6723091,3742.1,3741.1,2.6729464]
[1760218642111,3.3050942,3743.3,3740.2,20.03667372]
[1760218642306,2.67237755,3742.0,3740.7,2.6732855]
[1760218642526,2.67243997,3741.9,3740.9,0.002]
[1760218642734,2.67265911,3741.6,3740.9,0.002]
[1760218643104,2.67272649,3741.5,3740.9,0.002]
[1760218643745,0.6336,3742.6,3740.9,0.002]
[1760218643944,2.67043319,3744.8,3741.0,0.4578]
[1760218643945,1.92,3743.3,3741.0,0.4578]
[1760218644153,2.67209628,3742.4,3741.0,2.67308206]
[1760218644437,0.1957,3742.9,3741.3,2.67286771]
[1760218644636,0.1957,3742.9,3741.4,0.48452796]
[1760218644931,0.1957,3742.9,3742.1,2.6722963]
[1760218645133,0.1957,3743.4,3741.9,0.4578]
[1760218645305,1.92,3743.3,3742.1,2.6722963]
[1760218645505,0.1957,3743.4,3742.2,0.02672224]
[1760218645823,2.67114374,3743.8,3742.8,2.67177145]
[1760218646017,2.67114374,3743.8,3742.9,2.67170221]
[1760218646418,2.67114374,3743.8,3742.2,2.67222489]
[1760218646621,2.67117485,3743.7,3742.8,2.67174132]
[1760218646928,0.099,3743.9,3742.1,0.2343]
[1760218647129,2.67121566,3743.7,3742.6,2.67191068]
[1760218647330,2.67129716,3743.5,3742.6,2.67191068]
[1760218647831,2.67099473,3744.0,3742.1,0.2343]
[1760218647998,0.001,3744.2,3743.2,2.67145932]
[1760218648198,0.001,3744.2,3743.3,0.02671439]
[1760218648419,0.001,3744.2,3743.5,2.67129121]
[1760218648825,2.67116145,3743.7,3742.2,0.4578]
[1760218649019,2.67103848,3743.9,3742.7,2.67181084]
[1760218649236,2.67180339,3744.2,3742.6,0.4578]
[1760218649437,0.13154957,3747.7,3744.1,20.03667372]
[1760218649640,0.80295917,3748.0,3744.6,20.03667372]
[1760218649825,0.54670601,3747.6,3744.7,0.4578]
[1760218650011,2.66947799,3746.1,3744.3,0.4578]
[1760218650336,2.66947799,3746.1,3744.0,22.70758081]
[1760218650337,0.94977788,3746.0,3744.0,2.6708763]
[1760218650568,2.67003449,3745.3,3743.7,0.4578]
[1760218650764,2.67003449,3745.3,3743.7,3.128935]
[1760218650930,0.1328,3744.3,3744.0,2.67092619]
[1760218651333,0.1328,3744.3,3743.7,0.5906]
[1760218651762,0.1328,3744.3,3743.8,2.67107592]
[1760218652265,0.1328,3744.3,3744.2,2.6707975]
[1760218653150,0.1328,3744.3,3744.1,2.67085939]
[1760218653355,0.1328,3744.3,3744.2,2.6707975]
[1760218653731,0.1328,3744.3,3744.0,2.67087252]
[1760218653929,0.1328,3744.3,3744.1,2.6708441]
[1760218654173,0.1328,3744.3,3743.9,2.67100334]
[1760218654355,0.1328,3744.3,3744.1,2.67081276]
[1760218654531,0.1328,3744.3,3744.2,2.6707975]
[1760218655281,0.27092226,3748.2,3744.2,2.95775234]
[1760218655447,0.1328,3746.3,3746.2,2.66937162]
[1760218656869,0.1328,3746.3,3745.7,0.1328]
[1760218657029,0.1328,3746.3,3746.0,2.66945838]
[1760218657960,0.1328,3746.3,3745.9,2.66957894]
[1760218658167,2.66612399,3750.8,3746.2,0.2343]
[1760218658401,20.03667372,3750.7,3746.7,20.03667372]
[1760218658602,2.6676957,3748.6,3747.6,2.66833959]
[1760218658763,2.86319674,3748.9,3747.7,2.66829927]
[1760218659101,2.66760132,3748.7,3747.3,2.668587]
[1760218659265,2.66753252,3748.8,3747.7,2.66830167]
[1760218659576,0.1957,3748.9,3747.8,0.02668232]
[1760218659774,0.1957,3749.4,3747.8,0.4578]
[1760218659976,2.66734806,3749.1,3748.2,2.66792967]
[1760218660178,2.66734806,3749.1,3747.8,0.4578]
[1760218660179,0.1957,3749.4,3747.8,0.4578]
[1760218660351,2.86280484,3749.4,3748.2,2.66790841]
[1760218660546,2.66729921,3749.2,3748.2,2.66790841]
[1760218660753,2.86280484,3749.4,3748.2,2.66790841]
[1760218660952,2.66734716,3749.1,3748.2,2.66790841]
[1760218661452,2.66734716,3749.1,3748.1,2.66801005]
[1760218661806,2.66734716,3749.1,3748.2,2.66794253]
[1760218662453,0.1957,3749.4,3747.8,0.4578]
[1760218662679,2.66726529,3749.2,3747.8,0.4578]
[1760218662877,2.6672405,3749.2,3747.8,0.4578]
[1760218663552,0.1957,3749.8,3747.8,0.4578]
[1760218663755,2.66773917,3748.5,3747.8,0.4578]
[1760218664064,0.1957,3749.8,3747.8,0.4578]
[1760218664265,2.66766687,3748.6,3747.8,0.4578]
[1760218664462,0.1957,3749.8,3747.2,0.4392]
[1760218664662,2.66800351,3748.2,3747.2,0.4392]
[1760218664865,2.66695114,3749.6,3747.2,0.4392]
[1760218664866,2.66817103,3747.9,3747.2,0.4392]
[1760218665050,2.66817133,3747.9,3747.2,0.4392]
[1760218665368,2.66817434,3747.9,3747.2,0.4392]
[1760218665604,2.66823367,3747.8,3747.2,0.4392]
[1760218665805,2.66808964,3748.0,3747.2,0.4392]
[1760218666131,2.6682077,3747.9,3747.2,0.4392]
[1760218666300,2.66824547,3747.8,3747.2,0.4392]
[1760218666503,2.66695114,3749.6,3747.2,0.4392]
[1760218666504,2.66688001,3749.7,3747.5,20.03667372]
[1760218666825,2.66688001,3749.7,3747.6,0.4392]
[1760218667032,2.66771551,3748.6,3747.6,0.4392]
[1760218667345,0.6336,3750.6,3747.6,0.4392]
[1760218667531,2.66787569,3748.4,3747.6,0.4392]
[1760218667914,2.66808107,3748.1,3747.6,0.4392]
[1760218668112,2.66823202,3747.8,3747.7,0.4392]
[1760218668313,2.66823202,3747.8,3747.6,0.1328]
[1760218668534,4.60460441,3750.9,3747.7,0.4392]
[1760218668827,2.66820103,3747.9,3747.6,0.1328]
[1760218669029,2.66825051,3747.8,3747.6,0.1328]
[1760218669640,2.66825051,3747.8,3747.7,0.4392]
[1760218669833,0.6336,3749.6,3746.7,0.4392]
[1760218670030,2.66884364,3747.0,3746.7,0.572]
[1760218670248,2.66884364,3747.0,3746.7,0.1328]
[1760218670249,2.66883178,3747.0,3746.7,0.1328]
[1760218670450,2.66887788,3746.9,3746.7,0.1328]
[1760218670744,2.66824321,3747.8,3745.5,0.4392]
[1760218670745,0.6336,3747.8,3745.5,0.4392]
[1760218670907,2.66830322,3747.7,3745.5,0.4392]
[1760218671112,2.66959884,3745.9,3745.5,0.4392]
[1760218671442,2.66993331,3745.5,3744.8,0.4392]
[1760218671645,2.67043582,3744.8,3744.4,0.4392]
[1760218671848,0.1328,3745.9,3744.0,0.2343]
[1760218672053,2.67067746,3744.4,3744.0,0.2343]
[1760218672212,0.1328,3745.9,3743.7,0.4392]
[1760218672554,2.67091691,3744.1,3743.1,0.6682]
[1760218672765,2.67129433,3743.6,3743.1,0.6682]
[1760218673099,0.13260244,3745.7,3742.7,0.4696]
[1760218673216,2.0528,3745.9,3742.7,0.4696]
[1760218673217,0.6336,3745.5,3742.7,0.4696]
[1760218673413,1.92,3745.6,3742.7,0.4696]
[1760218673613,0.6336,3744.9,3742.7,0.4696]
[1760218673824,0.6336,3744.9,3742.1,20.27097372]
[1760218673825,0.6336,3744.9,3742.1,0.2343]
[1760218674012,1.92,3745.5,3742.1,0.2343]
[1760218674013,2.67201197,3742.5,3742.1,0.2343]
[1760218674213,2.6705122,3744.6,3742.0,0.4696]
[1760218674214,2.5536,3744.7,3742.0,0.4696]
[1760218674435,2.67124576,3743.6,3741.5,0.4696]
[1760218674670,2.67238547,3742.0,3741.5,0.4696]
[1760218674949,2.67239877,3742.0,3741.5,0.4696]
[1760218675148,2.67142852,3743.4,3741.0,2.3896]
[1760218675348,2.67158237,3743.1,3741.0,2.3896]
[1760218675510,0.6336,3743.3,3741.1,0.68235399]
[1760218675716,2.67279832,3741.4,3741.0,0.4696]
[1760218675913,2.67297899,3741.2,3740.9,0.002]
[1760218676118,2.67222232,3742.3,3740.9,0.002]
[1760218676362,2.67301352,3741.1,3740.9,0.002]
[1760218676657,2.67251055,3741.8,3740.9,0.002]
[1760218676950,2.67308206,3741.0,3740.9,0.002]
[1760218679121,2.6733679,3740.6,3740.5,1e-08]
[1760218679461,3.3069679,3740.6,3740.5,1e-08]
[1760218679821,5.2269679,3740.6,3740.5,1e-08]
[1760218680544,12.3686509,3740.6,3740.5,1e-08]
[1760218680755,10.48224981,3740.2,3740.1,0.002]
[1760218680979,0.6336,3739.8,3736.5,0.4696]
[1760218681276,3.214481,3741.1,3736.5,0.4696]
[1760218681277,2.67465496,3738.8,3736.5,0.4696]
[1760218681430,2.67591917,3737.1,3736.3,0.22]
[1760218681631,2.67601722,3736.9,3736.0,0.6896]
[1760218681911,2.67558528,3737.5,3735.8,0.4696]
[1760218682173,2.67602948,3736.9,3735.8,0.4696]
[1760218682480,0.6336,3738.3,3735.8,0.4696]
[1760218682481,2.6750127,3738.3,3735.8,0.4696]
[1760218682632,0.1328,3737.9,3735.8,0.4696]
[1760218682833,2.67365393,3740.2,3735.8,0.4696]
[1760218683034,2.67415429,3739.5,3736.8,2.67608649]
[1760218683249,2.67509687,3738.2,3736.9,2.6096]
[1760218683477,2.67509687,3738.2,3737.0,0.4696]
[1760218683680,2.67423153,3739.4,3737.1,0.52856865]
[1760218683887,2.67397154,3739.8,3737.1,0.52856865]
[1760218683888,2.67442614,3739.2,3737.2,0.496358]
[1760218684182,2.67337149,3740.6,3737.2,0.4696]
[1760218684467,19.79910723,3741.5,3737.2,0.4696]
[1760218684468,2.67443992,3739.2,3737.2,0.4696]
[1760218684671,2.67444149,3739.1,3737.2,0.4696]
[1760218684871,2.67468778,3738.8,3737.4,2.67559075]
[1760218685072,2.6745311,3739.0,3737.6,2.6755115]
[1760218685281,0.1328,3739.9,3737.7,0.4696]
[1760218685586,2.6724057,3742.0,3738.0,2.67521916]
[1760218685587,2.67422161,3739.5,3738.0,2.67521916]
[1760218685780,1.92,3740.9,3738.1,0.71635155]
[1760218686067,2.6745171,3739.0,3738.2,0.80875707]
[1760218686254,2.67422108,3739.5,3738.3,0.4696]
[1760218686576,2.67438449,3739.2,3738.4,0.02674941]
[1760218686743,2.67438449,3739.2,3738.5,0.4696]
[1760218686939,2.67438449,3739.2,3738.6,0.02674798]
[1760218687142,0.54123455,3741.5,3738.6,0.02674798]
[1760218687456,1.92,3741.9,3738.7,0.4696]
[1760218687972,2.67421398,3739.5,3738.7,0.4696]
[1760218688183,2.67423709,3739.4,3738.7,0.4696]
[1760218688469,2.67437569,3739.2,3738.7,0.4696]
[1760218688769,2.67437569,3739.2,3738.8,0.4696]
[1760218689072,2.67448398,3739.1,3738.5,0.4696]
[1760218689236,0.1328,3739.8,3738.5,0.4696]
[1760218689442,2.67480549,3738.6,3738.1,0.22]
[1760218689641,2.67480549,3738.6,3738.1,0.6896]
[1760218689951,2.67480549,3738.6,3738.2,0.4696]
[1760218690350,2.67438431,3739.2,3738.2,0.4696]
[1760218690541,2.67492623,3738.5,3738.2,0.4696]
[1760218690742,0.1336,3738.6,3738.2,0.4696]
[1760218691067,2.67488432,3738.5,3738.2,0.4696]
[1760218691238,2.67488432,3738.5,3738.1,0.22]
[1760218691440,2.80840839,3738.6,3738.2,0.4696]
[1760218691741,0.1336,3738.6,3738.3,0.4696]
[1760218691953,0.1336,3738.6,3738.4,0.4696]
[1760218692158,0.1336,3738.6,3738.5,0.4696]
[1760218692887,2.80839805,3738.6,3738.5,0.4696]
[1760218694491,0.1336,3738.6,3738.5,0.4696]
[1760218694863,2.80839805,3738.6,3738.5,0.4696]
[1760218695182,0.1336,3738.6,3738.0,0.1336]
[1760218695397,2.67429348,3739.4,3737.4,0.4696]
[1760218695398,2.67515582,3738.1,3737.4,0.4696]
[1760218695605,2.67536105,3737.9,3737.6,0.1336]
[1760218695770,2.67472084,3738.8,3736.9,0.6896]
[1760218696095,2.0528,3739.8,3736.8,0.002]
[1760218696096,2.67580006,3737.2,3736.8,0.002]
[1760218699361,2.62580006,3737.2,3736.8,0.002]
[1760218699984,2.67601487,3736.9,3736.8,1e-08]
[1760218702198,3.30961487,3736.9,3736.8,1e-08]
[1760218702508,5.22961487,3736.9,3736.8,1e-08]
[1760218704201,5.76160153,3736.9,3736.8,1e-08]
[1760218704577,5.22961487,3736.9,3736.8,1e-08]
[1760218704903,2.67601487,3736.9,3736.8,1e-08]
[1760218705465,0.1328,3737.9,3736.8,1e-08]
[1760218705695,2.67601487,3736.9,3736.8,1e-08]
[1760218706095,2.67596937,3737.0,3736.8,1e-08]
[1760218706302,2.67601487,3736.9,3736.8,1e-08]
[1760218711388,0.2318,3737.9,3736.8,1e-08]
[1760218711389,2.67401128,3739.7,3736.8,1e-08]
[1760218711588,0.0993,3739.4,3736.8,2.41386087]
[1760218711788,2.6748135,3738.6,3737.7,2.67538827]
[1760218712013,2.6748135,3738.6,3737.8,3.16917036]
[1760218712233,2.6746709,3738.8,3737.9,2.67522802]
[1760218712392,2.67460052,3738.9,3738.0,0.58444997]
[1760218712585,2.67460052,3738.9,3738.1,0.7014]
[1760218713103,2.67466889,3738.8,3738.1,0.7014]
[1760218713404,1.921,3740.1,3738.1,0.7014]
[1760218713405,0.1007,3740.1,3738.2,0.49385084]
[1760218713624,0.001,3740.1,3738.2,0.4671]
[1760218713923,2.67400729,3739.8,3738.9,2.67457885]
[1760218714123,2.67379679,3740.0,3739.1,2.67442001]
[1760218714311,2.67387244,3739.9,3739.1,2.67442001]
[1760218714516,2.67394068,3739.8,3739.0,0.73455789]
[1760218714715,0.001,3740.1,3739.4,2.67421322]
[1760218714901,0.001,3740.1,3739.1,3.16827309]
[1760218714902,0.001,3740.1,3739.5,2.70089547]
[1760218715224,0.001,3740.1,3739.6,0.27008955]
[1760218715425,0.001,3740.1,3739.6,0.73718955]
[1760218715630,0.001,3740.1,3739.7,0.4671]
[1760218716018,0.001,3740.1,3739.6,0.27008955]
[1760218716220,0.001,3740.1,3739.8,0.4671]
[1760218716598,0.001,3740.1,3739.9,0.4671]
[1760218717137,0.001,3740.1,3740.0,0.4671]
[1760218718108,0.001,3740.1,3739.1,2.67442619]
[1760218718109,0.001,3740.1,3739.1,0.6336]
[1760218718309,0.001,3740.1,3740.0,0.4671]
[1760218719138,0.001,3740.1,3740.0,3.48172892]
[1760218719305,0.001,3740.1,3740.0,5.40172892]
[1760218719501,0.001,3740.1,3740.0,5.37499096]
[1760218720632,0.001,3740.1,3740.0,6.00859096]
[1760218721911,0.001,3740.5,3740.4,3.30711085]
[1760218722121,2.67075658,3744.3,3740.8,3.30682497]
[1760218722320,2.67152898,3743.2,3740.8,25.06431425]
[1760218722623,2.67165901,3743.0,3740.9,0.4454]
[1760218722835,0.1016,3743.4,3741.4,1.92]
[1760218723038,2.67171503,3743.0,3741.5,0.4454]
[1760218723348,2.67224641,3742.2,3741.5,0.4454]
[1760218723548,3.3047542,3743.7,3741.5,0.4454]
[1760218723849,2.67242803,3742.0,3741.2,0.4454]
[1760218724412,2.67252745,3741.8,3741.2,0.4454]
[1760218724614,2.6723564,3742.1,3741.3,1.92]
[1760218725028,2.67239959,3742.0,3741.3,1.92]
[1760218725256,2.6724614,3741.9,3741.2,0.4454]
[1760218725455,2.67264021,3741.7,3741.2,0.4454]
[1760218725814,2.67268294,3741.6,3741.3,0.4454]
[1760218726036,2.67249499,3741.9,3741.4,0.4454]
[1760218726269,0.1016,3743.3,3741.5,0.4454]
[1760218726438,0.1016,3743.3,3741.6,0.02672653]
[1760218726617,2.6719989,3742.6,3741.7,2.67258198]
[1760218726816,2.6719989,3742.6,3741.8,3.1446153]
[1760218727020,2.67135708,3743.5,3741.8,3.1446153]
[1760218727021,0.1325,3744.0,3741.9,1.079]
[1760218727226,2.66989554,3745.5,3742.7,2.6718679]
[1760218727474,2.67065379,3744.5,3743.6,2.67121069]
[1760218727670,2.67072787,3744.3,3743.7,0.4454]
[1760218727853,2.67053297,3744.6,3743.7,0.4454]
[1760218728058,2.67069672,3744.4,3743.7,0.4454]
[1760218728354,0.1019,3745.2,3743.7,3.11652892]
[1760218728668,2.67059298,3744.5,3743.7,0.4454]
[1760218728836,2.67059298,3744.5,3743.7,3.11654756]
[1760218729036,2.67066631,3744.4,3743.7,0.4454]
[1760218729225,0.1328,3744.4,3743.8,0.1328]
[1760218729424,2.80352393,3744.4,3743.8,0.1328]
[1760218729627,2.80345737,3744.4,3743.8,0.1328]
[1760218729866,0.1328,3744.4,3743.8,0.1328]
[1760218730075,2.67072849,3744.3,3743.8,0.1328]
[1760218730274,2.67091473,3744.1,3743.3,2.3654]
[1760218730460,2.80371473,3744.1,3743.5,0.1328]
[1760218731067,2.67055882,3744.6,3743.7,2.67111817]
[1760218731256,2.66968052,3745.8,3743.9,2.803776]
[1760218731257,0.1328,3744.5,3743.9,2.803776]
[1760218731464,1.92,3745.8,3743.1,4.59151991]
[1760218731465,0.1019,3746.1,3744.4,0.2214]
[1760218731666,2.67023403,3745.0,3744.4,0.2214]
[1760218731840,2.67043658,3744.8,3744.5,0.02670583]
[1760218732031,2.67043658,3744.8,3744.3,0.02670726]
[1760218732236,2.67043658,3744.8,3744.3,0.47210726]
[1760218732437,2.67047001,3744.7,3744.3,0.4454]
[1760218732668,2.67072707,3744.3,3743.6,0.448]
[1760218732970,2.67073773,3744.3,3743.6,0.448]
[1760218733942,2.67008437,3745.2,3743.6,0.448]
[1760218734347,2.67008437,3745.2,3743.7,2.67115311]
[1760218734665,2.67065675,3744.4,3743.6,3.11921086]
[1760218734867,2.67002164,3745.3,3743.6,0.448]
[1760218735172,2.6705237,3744.6,3743.6,3.1192116]
[1760218735371,2.6705237,3744.6,3743.7,0.448]
[1760218735574,2.67002164,3745.3,3743.9,2.67097285]
[1760218735778,2.67050088,3744.7,3743.9,2.67097285]
[1760218736072,2.67050088,3744.7,3744.0,0.448]
[1760218736549,2.67050088,3744.7,3744.0,3.11892842]
[1760218736950,2.67050088,3744.7,3744.0,0.448]
[1760218737166,2.67000513,3745.4,3744.0,0.448]
[1760218737367,0.1019,3745.3,3743.5,0.6824]
[1760218737574,2.67033822,3744.9,3743.5,2.6024]
[1760218737780,2.67080351,3744.2,3743.5,2.6024]
[1760218738093,2.6708739,3744.1,3743.5,2.6024]
[1760218738299,2.67099606,3744.0,3743.5,0.6824]
[1760218738480,2.67058712,3744.5,3743.6,0.448]
[1760218738680,0.1019,3745.3,3743.6,0.448]
[1760218738895,2.67096495,3744.0,3743.6,0.448]
[1760218739192,2.67096495,3744.0,3743.0,22.4823967]
[1760218739193,0.6336,3745.8,3742.7,0.448]
[1760218739370,2.67109843,3743.8,3742.7,0.448]
[1760218739569,0.1019,3744.5,3742.7,3.11986322]
[1760218739983,0.1019,3744.4,3742.7,0.448]
[1760218740186,2.67150028,3743.3,3742.7,0.448]
[1760218740385,2.67159926,3743.1,3742.7,0.448]
[1760218740696,2.67159926,3743.1,3742.2,1.92]
[1760218740697,2.67155138,3743.2,3742.4,0.448]
[1760218740899,2.67155138,3743.2,3742.2,1.92]
[1760218740900,0.1022,3743.4,3741.7,0.448]
[1760218741070,2.67172513,3742.9,3740.7,19.81075704]
[1760218741266,2.6718679,3742.7,3740.7,19.81075704]
[1760218741499,2.67267689,3741.6,3740.9,1.92]
[1760218741666,2.67280821,3741.4,3740.9,0.1336]
[1760218742000,2.80633181,3741.5,3740.9,0.1336]
[1760218742301,2.67234042,3742.1,3740.1,0.448]
[1760218742486,2.67234042,3742.1,3739.5,0.448]
[1760218742487,0.099,3741.5,3739.5,0.448]
[1760218742690,0.099,3741.4,3739.5,0.448]
[1760218742866,2.67358168,3740.4,3739.5,5.04215097]
[1760218743189,0.1979,3741.6,3739.5,0.448]
[1760218743190,2.67359114,3740.3,3739.5,0.448]
[1760218743364,0.1979,3741.6,3739.5,0.448]
[1760218743365,0.099,3740.9,3739.5,0.448]
[1760218743570,0.099,3740.9,3739.5,3.12215426]
[1760218743774,0.099,3740.9,3739.5,0.448]
[1760218743980,2.67385694,3740.0,3739.1,20.05640008]
[1760218744375,1.39465966,3743.7,3739.0,0.26745789]
[1760218744376,0.099,3740.5,3739.0,0.26745789]
[1760218744581,2.67415825,3739.5,3738.9,0.448]
[1760218744785,2.67400045,3739.8,3738.5,22.73124571]
[1760218744994,2.67422593,3739.4,3738.6,1.92]
[1760218745196,2.67416391,3739.5,3738.6,4.59479272]
[1760218745403,0.1321,3739.9,3738.5,20.05640008]
[1760218745605,2.67437709,3739.2,3738.5,20.05640008]
[1760218746108,2.67437709,3739.2,3738.4,2.368]
[1760218747184,2.67445586,3739.1,3738.2,2.67504181]
[1760218747415,2.67445586,3739.1,3738.3,1.92]
[1760218747805,2.67467074,3738.8,3737.9,20.05640008]
[1760218748011,2.67516225,3738.1,3737.3,20.50440008]
[1760218748199,0.0993,3738.9,3737.3,20.50440008]
[1760218748395,2.67521945,3738.1,3737.3,0.448]
[1760218748598,2.6750127,3738.3,3736.7,20.05640008]
[1760218748926,0.0993,3738.0,3736.7,20.05640008]
[1760218749226,0.0993,3738.0,3736.6,0.448]
[1760218749393,2.67582031,3737.2,3736.6,0.448]
[1760218749593,2.67529896,3737.9,3736.1,23.18095984]
[1760218749897,4.59446483,3739.1,3737.3,2.67570012]
[1760218749898,2.67508195,3738.3,3737.3,2.67570012]
[1760218750218,2.77403833,3738.7,3737.4,0.02675656]
[1760218750418,0.0993,3739.2,3737.4,0.47475656]
[1760218750599,2.67466129,3738.8,3737.9,2.67523904]
[1760218750999,0.0993,3739.2,3737.5,4.99622204]
[1760218751216,2.67479071,3738.7,3737.8,2.675369]
[1760218751398,2.67450967,3739.1,3737.5,2.32069483]
[1760218751599,2.67450967,3739.1,3738.0,2.67522634]
[1760218751819,0.0993,3739.2,3737.9,2.67528815]
[1760218752024,2.67444037,3739.1,3737.9,0.26752882]
[1760218752194,0.1336,3738.2,3737.6,0.1336]
[1760218752396,2.67514743,3738.2,3737.5,2.32069483]
[1760218752601,0.1336,3737.9,3737.4,0.448]
[1760218752809,0.1336,3737.9,3737.2,0.1336]
[1760218752810,2.80890939,3737.9,3737.2,0.1336]
[1760218753119,0.1336,3737.9,3737.2,0.1336]
[1760218753528,0.1336,3737.9,3737.3,2.67572122]
[1760218753686,0.1336,3737.9,3737.3,2.67572116]
[1760218754100,0.1336,3737.9,3737.2,2.80937192]
[1760218754299,2.80891188,3737.9,3737.2,0.1336]
[1760218754723,2.80891188,3737.9,3737.2,2.80939537]
[1760218754724,0.1336,3737.9,3737.2,2.80939537]
[1760218755026,0.1336,3737.9,3737.2,3.59472819]
[1760218755324,0.1336,3737.9,3737.2,0.91893282]
[1760218755495,0.1336,3737.9,3737.4,2.67560251]
[1760218755690,0.1336,3737.9,3737.5,0.448]
[1760218756106,0.1336,3737.9,3737.2,0.1336]
[1760218756300,0.1336,3737.9,3737.4,2.67564593]
[1760218756523,0.1336,3737.9,3737.3,2.67571356]
[1760218756933,0.1336,3737.9,3737.2,2.80938712]
[1760218757092,0.1336,3737.9,3737.2,0.1336]
[1760218757298,0.1336,3737.9,3737.3,2.67572352]
[1760218757608,2.80891656,3737.9,3737.2,0.1336]
[1760218757935,2.67537717,3737.8,3737.2,0.1336]
[1760218758437,2.67508426,3738.2,3736.9,1.92]
[1760218758730,0.1336,3737.3,3736.8,1e-08]
[1760218758902,2.67565687,3737.4,3736.8,1e-08]
[1760218759107,0.1336,3737.0,3736.8,1e-08]
[1760218760527,0.1336,3737.6,3736.9,0.5816]
[1760218760732,0.1336,3737.6,3737.2,2.675733]
[1760218760932,0.1336,3737.6,3737.3,3.12371041]
[1760218761519,0.1336,3737.6,3737.4,2.67565657]
[1760218761764,0.0993,3739.3,3737.4,20.50440008]
[1760218762059,0.0993,3739.3,3738.1,2.67510423]
[1760218762060,2.67463537,3738.9,3738.1,2.67510423]
[1760218762223,0.0993,3739.3,3737.8,0.448]
[1760218762424,0.0993,3739.3,3737.9,2.67529896]
[1760218762659,2.67466123,3738.8,3737.9,2.67529896]
[1760218762853,2.67466123,3738.8,3737.8,0.76035137]
[1760218762854,1.92,3740.2,3736.4,0.002]
[1760218763162,2.67557008,3737.6,3736.6,1.92]
[1760218763322,2.67559005,3737.5,3736.6,1.92]
[1760218764028,0.0993,3738.2,3736.9,2.67600057]
[1760218764029,2.67553097,3737.6,3736.9,2.67600057]
[1760218764233,2.67545101,3737.7,3737.0,0.02675943]
[1760218764446,0.0993,3738.2,3737.0,0.02675943]
[1760218764447,2.67551567,3737.6,3737.0,0.02675943]
[1760218764668,2.67515582,3738.1,3737.0,0.02675943]
[1760218764825,2.67587166,3737.1,3736.4,0.002]
[1760218765018,0.0993,3738.0,3736.4,0.002]
[1760218765236,2.67594611,3737.0,3736.4,0.002]
[1760218765548,2.67601487,3736.9,3736.4,0.002]
[1760218766131,2.67599622,3737.0,3736.4,0.002]
[1760218766454,2.67601487,3736.9,3736.4,0.002]
[1760218766969,0.0993,3737.8,3736.6,2.67622328]
[1760218767167,2.67566749,3737.4,3736.5,0.4586]
[1760218767372,2.67576322,3737.3,3736.5,0.4586]
[1760218767667,2.67576322,3737.3,3736.5,3.13489883]
[1760218768174,2.67581218,3737.2,3736.5,3.13489883]
[1760218768380,2.67565687,3737.4,3736.6,2.6762271]
[1760218768579,2.67574245,3737.3,3736.5,3.13488918]
[1760218768872,0.0993,3737.8,3736.5,0.4586]
[1760218768873,2.67581379,3737.2,3736.5,0.4586]
[1760218769233,2.67558534,3737.5,3736.5,0.4586]
[1760218769234,2.67574024,3737.3,3736.5,0.4586]
[1760218769437,2.67574024,3737.3,3736.5,3.13484534]
[1760218769741,2.67488467,3738.5,3736.6,0.02676229]
[1760218769742,0.0993,3738.5,3736.6,0.02676229]
[1760218769963,0.4586,3740.1,3736.6,0.02676229]
[1760218769964,2.67486008,3738.6,3736.9,20.51500008]
[1760218770175,2.67486008,3738.6,3737.8,2.67535946]
[1760218770349,2.67486008,3738.6,3737.9,0.02675298]
[1760218770555,2.67463448,3738.9,3738.0,2.67516321]